[Event "*** Titled Tuesday Blitz"]
[Site "Chess.com"]
[Date "2021.04.27"]
[Round "10"]
[White "PavelShkapenko"]
[Black "UKR_Master"]
[Result "0-1"]
[WhiteElo "2662"]
[BlackElo "2508"]
[TimeControl "180+1"]
[EndTime "11:54:56 PDT"]
[Termination "UKR_Master won by resignation"]

1. e4 {[%clk 0:03:00.9]} 1... c5 {[%clk 0:03:00.4]} 2. c3 {[%clk 0:03:00.4]}
2... Nf6 {[%clk 0:02:59.1]} 3. e5 {[%clk 0:03:00.2]} 3... Nd5 {[%clk 0:02:59.8]}
4. d4 {[%clk 0:03:00.5]} 4... cxd4 {[%clk 0:03:00.7]} 5. cxd4 {[%clk 0:03:01.1]}
5... d6 {[%clk 0:03:01.4]} 6. Nf3 {[%clk 0:03:00.2]} 6... e6 {[%clk 0:03:01.9]}
7. Nc3 {[%clk 0:02:59.3]} 7... Nxc3 {[%clk 0:03:01.5]} 8. bxc3 {[%clk
0:03:00.2]} 8... Bd7 {[%clk 0:03:01]} 9. Bf4 {[%clk 0:02:56]} 9... Bc6 {[%clk
0:03:00.8]} 10. Bd3 {[%clk 0:02:55.9]} 10... Nd7 {[%clk 0:02:36]} 11. O-O {[%clk
0:02:45.5]} 11... Nb6 {[%clk 0:02:33]} 12. Ng5 {[%clk 0:02:30.4]} 12... h6
{[%clk 0:02:00.1]} 13. Qh5 {[%clk 0:02:24.6]} 13... hxg5 {[%clk 0:01:55.4]} 14.
Qxh8 {[%clk 0:02:23.9]} 14... gxf4 {[%clk 0:01:55.7]} 15. Rfe1 {[%clk
0:02:10.7]} 15... Qg5 {[%clk 0:01:49.8]} 16. Qh3 {[%clk 0:01:57.3]} 16... O-O-O
{[%clk 0:01:46.7]} 17. Bf1 {[%clk 0:01:47.4]} 17... f3 {[%clk 0:01:36.5]} 18. g3
{[%clk 0:01:44.6]} 18... Be7 {[%clk 0:01:36]} 19. Qh7 {[%clk 0:01:36]} 19... Rf8
{[%clk 0:01:14]} 20. h4 {[%clk 0:01:09.9]} 20... Qg4 {[%clk 0:01:02]} 21. Kh2
{[%clk 0:01:09.1]} 21... g6 {[%clk 0:00:48.4]} 22. Bh3 {[%clk 0:01:05.3]} 22...
Qh5 {[%clk 0:00:48.6]} 23. Qxh5 {[%clk 0:01:02.9]} 23... gxh5 {[%clk 0:00:48.7]}
24. Rad1 {[%clk 0:00:55.1]} 24... Bd5 {[%clk 0:00:42.7]} 25. a3 {[%clk
0:00:52.8]} 25... Nc4 {[%clk 0:00:43]} 26. exd6 {[%clk 0:00:48.7]} 26... Bxd6
{[%clk 0:00:43.7]} 27. a4 {[%clk 0:00:48.7]} 27... a6 {[%clk 0:00:41.6]} 28. Bf1
{[%clk 0:00:46.4]} 28... Kc7 {[%clk 0:00:35.7]} 29. Bd3 {[%clk 0:00:44.6]} 29...
Nb2 {[%clk 0:00:35]} 30. Rd2 {[%clk 0:00:44.3]} 30... Nxd3 {[%clk 0:00:35.4]}
31. Rxd3 {[%clk 0:00:45.2]} 31... b5 {[%clk 0:00:36.3]} 32. Ra1 {[%clk
0:00:42.5]} 32... Ra8 {[%clk 0:00:26.4]} 33. axb5 {[%clk 0:00:41]} 33... axb5
{[%clk 0:00:27.3]} 34. Rxa8 {[%clk 0:00:40.5]} 34... Bxa8 {[%clk 0:00:28.2]} 35.
Kg1 {[%clk 0:00:40.4]} 35... Kb6 {[%clk 0:00:23.8]} 36. Kf1 {[%clk 0:00:39.1]}
36... Ka5 {[%clk 0:00:24.2]} 37. Ke1 {[%clk 0:00:39]} 37... Ka4 {[%clk
0:00:22.5]} 38. Rd1 {[%clk 0:00:30.4]} 38... Kb3 {[%clk 0:00:22.1]} 39. Kd2
{[%clk 0:00:29.7]} 39... Bd5 {[%clk 0:00:11.9]} 40. Kd3 {[%clk 0:00:26.9]} 40...
b4 {[%clk 0:00:10.8]} 41. cxb4 {[%clk 0:00:24.1]} 41... Kxb4 {[%clk 0:00:10.1]}
42. Rb1+ {[%clk 0:00:23.3]} 42... Ka5 {[%clk 0:00:10.7]} 43. Ke3 {[%clk
0:00:21.3]} 43... Ka4 {[%clk 0:00:09.8]} 44. Rb6 {[%clk 0:00:19.7]} 44... Bc7
{[%clk 0:00:07.7]} 45. Ra6+ {[%clk 0:00:18.9]} 45... Kb5 {[%clk 0:00:08.1]} 46.
Ra7 {[%clk 0:00:19.3]} 46... Kb6 {[%clk 0:00:07.8]} 47. Ra1 {[%clk 0:00:19.2]}
47... Kc6 {[%clk 0:00:08.4]} 48. Rc1+ {[%clk 0:00:18.8]} 48... Kd7 {[%clk
0:00:08.3]} 49. Ra1 {[%clk 0:00:19.2]} 49... Bb6 {[%clk 0:00:07.4]} 50. Rb1
{[%clk 0:00:19.2]} 50... Kc6 {[%clk 0:00:07.4]} 51. Rc1+ {[%clk 0:00:18.7]}
51... Kb7 {[%clk 0:00:08]} 52. Rc3 {[%clk 0:00:18.1]} 52... e5 {[%clk
0:00:08.1]} 53. Kd3 {[%clk 0:00:16.5]} 53... Bxd4 {[%clk 0:00:07.3]} 54. Rc2
{[%clk 0:00:17]} 54... Be6 {[%clk 0:00:05.5]} 55. Rd2 {[%clk 0:00:15.7]} 55...
Bf5+ {[%clk 0:00:05.2]} 56. Kc4 {[%clk 0:00:15.8]} 56... Kc6 {[%clk 0:00:05.8]}
57. Kb4 {[%clk 0:00:13.7]} 57... Kd5 {[%clk 0:00:05.5]} 58. Ra2 {[%clk
0:00:12.7]} 58... Ke4 {[%clk 0:00:05.9]} 59. Rd2 {[%clk 0:00:11.5]} 59... Be6
{[%clk 0:00:06.2]} 60. Kb5 {[%clk 0:00:11.1]} 60... f5 {[%clk 0:00:05.8]} 61.
Kb4 {[%clk 0:00:11]} 61... f4 {[%clk 0:00:04.2]} 62. gxf4 {[%clk 0:00:11.3]}
62... Kxf4 {[%clk 0:00:05.1]} 63. Rd1 {[%clk 0:00:11.1]} 63... Ke4 {[%clk
0:00:05.3]} 64. Rd2 {[%clk 0:00:11.3]} 64... Bh3 {[%clk 0:00:05.2]} 65. Kb5
{[%clk 0:00:11.1]} 65... Bf1+ {[%clk 0:00:05.1]} 0-1

[Event "*** Titled Tuesday Blitz"]
[Site "Chess.com"]
[Date "2021.04.27"]
[Round "10"]
[White "TengisChess"]
[Black "ybruned"]
[Result "1/2-1/2"]
[WhiteElo "2548"]
[BlackElo "2391"]
[TimeControl "180+1"]
[EndTime "11:54:57 PDT"]
[Termination "Game drawn by repetition"]

1. d4 {[%clk 0:02:25]} 1... b6 {[%clk 0:02:59.5]} 2. Nf3 {[%clk 0:02:24.6]} 2...
Bb7 {[%clk 0:02:59.5]} 3. Nc3 {[%clk 0:02:25.5]} 3... e6 {[%clk 0:03:00]} 4. Bg5
{[%clk 0:02:25.3]} 4... Nf6 {[%clk 0:02:54.8]} 5. e4 {[%clk 0:02:24.8]} 5... h6
{[%clk 0:02:54.5]} 6. Bxf6 {[%clk 0:02:24.8]} 6... Qxf6 {[%clk 0:02:53.5]} 7. e5
{[%clk 0:02:24.7]} 7... Qd8 {[%clk 0:02:52.6]} 8. Bd3 {[%clk 0:02:24.7]} 8...
Be7 {[%clk 0:02:50.5]} 9. Qe2 {[%clk 0:02:24.6]} 9... d6 {[%clk 0:02:49.9]} 10.
O-O-O {[%clk 0:02:23.4]} 10... Nd7 {[%clk 0:02:46.2]} 11. g4 {[%clk 0:02:23]}
11... d5 {[%clk 0:02:29.6]} 12. h4 {[%clk 0:02:20.7]} 12... c5 {[%clk
0:02:30.2]} 13. g5 {[%clk 0:02:21]} 13... c4 {[%clk 0:02:28.2]} 14. g6 {[%clk
0:02:16.2]} 14... cxd3 {[%clk 0:02:26.8]} 15. gxf7+ {[%clk 0:02:15.9]} 15...
Kxf7 {[%clk 0:02:27.3]} 16. Qxd3 {[%clk 0:02:16.2]} 16... Qf8 {[%clk 0:02:14.2]}
17. Rdg1 {[%clk 0:01:45.6]} 17... Ke8 {[%clk 0:02:07]} 18. Kb1 {[%clk
0:01:45.2]} 18... Qf7 {[%clk 0:01:48]} 19. Rh3 {[%clk 0:01:43.4]} 19... Kd8
{[%clk 0:01:47.2]} 20. Rhg3 {[%clk 0:01:35.6]} 20... Bf8 {[%clk 0:01:26.9]} 21.
Ne2 {[%clk 0:01:32.4]} 21... Rc8 {[%clk 0:01:21.3]} 22. Qe3 {[%clk 0:01:31.5]}
22... Kc7 {[%clk 0:01:20.5]} 23. Nf4 {[%clk 0:01:26.9]} 23... Kb8 {[%clk
0:01:19]} 24. Rg6 {[%clk 0:01:22]} 24... Re8 {[%clk 0:01:12.7]} 25. Ne1 {[%clk
0:01:18.8]} 25... Ka8 {[%clk 0:00:56.9]} 26. h5 {[%clk 0:01:16.9]} 26... Rg8
{[%clk 0:00:52.8]} 27. Qf3 {[%clk 0:01:08.3]} 27... Qf5 {[%clk 0:00:47.7]} 28.
Nxe6 {[%clk 0:01:00.5]} 28... Qxf3 {[%clk 0:00:44.4]} 29. Nxf3 {[%clk
0:01:01.4]} 29... Kb8 {[%clk 0:00:44.8]} 30. Nf4 {[%clk 0:00:57.7]} 30... b5
{[%clk 0:00:26.3]} 31. Nh4 {[%clk 0:00:50.6]} 31... Nb6 {[%clk 0:00:24.4]} 32.
b3 {[%clk 0:00:49.5]} 32... Bc8 {[%clk 0:00:24.8]} 33. R6g3 {[%clk 0:00:39.9]}
33... Be7 {[%clk 0:00:22.3]} 34. Nhg6 {[%clk 0:00:39]} 34... Bg5 {[%clk
0:00:22.4]} 35. Nd3 {[%clk 0:00:37.8]} 35... Bf5 {[%clk 0:00:21.3]} 36. f4
{[%clk 0:00:36.1]} 36... Bxg6 {[%clk 0:00:19.9]} 37. hxg6 {[%clk 0:00:31.4]}
37... Be7 {[%clk 0:00:19]} 38. f5 {[%clk 0:00:29.2]} 38... Rgf8 {[%clk
0:00:19.6]} 39. Rf3 {[%clk 0:00:29.7]} 39... Kc7 {[%clk 0:00:18.6]} 40. Rgf1
{[%clk 0:00:29.9]} 40... Nd7 {[%clk 0:00:17.8]} 41. Nf4 {[%clk 0:00:27.2]} 41...
Kc6 {[%clk 0:00:17.5]} 42. Ne6 {[%clk 0:00:26.9]} 42... Rg8 {[%clk 0:00:18.1]}
43. Rc3+ {[%clk 0:00:25.6]} 43... Kb6 {[%clk 0:00:17.4]} 44. Nc7 {[%clk
0:00:23.9]} 44... Kb7 {[%clk 0:00:11.6]} 45. Nxd5 {[%clk 0:00:21.2]} 45... Bd8
{[%clk 0:00:10.9]} 46. f6 {[%clk 0:00:18.4]} 46... gxf6 {[%clk 0:00:10.7]} 47.
exf6 {[%clk 0:00:19.1]} 47... Rxg6 {[%clk 0:00:11.3]} 48. f7 {[%clk 0:00:19.5]}
48... Rf8 {[%clk 0:00:11.8]} 49. Rcf3 {[%clk 0:00:18.8]} 49... Rd6 {[%clk
0:00:08.5]} 50. Nc3 {[%clk 0:00:18.5]} 50... a6 {[%clk 0:00:08.6]} 51. Ne2
{[%clk 0:00:17.7]} 51... Nf6 {[%clk 0:00:06.3]} 52. c3 {[%clk 0:00:16.5]} 52...
Rxf7 {[%clk 0:00:06.3]} 53. Ng3 {[%clk 0:00:17.4]} 53... Rdd7 {[%clk 0:00:05.8]}
54. Nf5 {[%clk 0:00:17.7]} 54... Rf8 {[%clk 0:00:05]} 55. Nxh6 {[%clk
0:00:16.9]} 55... Rh8 {[%clk 0:00:05.3]} 56. Nf5 {[%clk 0:00:16.6]} 56... Rh2
{[%clk 0:00:04.9]} 57. Ne3 {[%clk 0:00:16.5]} 57... Nd5 {[%clk 0:00:04.6]} 58.
Nxd5 {[%clk 0:00:15.6]} 58... Rxd5 {[%clk 0:00:05.5]} 59. R3f2 {[%clk
0:00:16.5]} 59... Rxf2 {[%clk 0:00:04.7]} 60. Rxf2 {[%clk 0:00:17.4]} 60... Bc7
{[%clk 0:00:04.7]} 61. Re2 {[%clk 0:00:17.6]} 61... b4 {[%clk 0:00:05.1]} 62.
Kc2 {[%clk 0:00:17.1]} 62... bxc3 {[%clk 0:00:04.8]} 63. Kxc3 {[%clk 0:00:18]}
63... Bb6 {[%clk 0:00:05.6]} 64. Re4 {[%clk 0:00:18.9]} 64... Rd7 {[%clk
0:00:05.8]} 65. Kc4 {[%clk 0:00:19.4]} 65... Kc6 {[%clk 0:00:06.4]} 66. b4
{[%clk 0:00:19.2]} 66... Rd6 {[%clk 0:00:06.9]} 67. a4 {[%clk 0:00:19.3]} 67...
Kc7 {[%clk 0:00:07.8]} 68. b5 {[%clk 0:00:19.4]} 68... axb5+ {[%clk 0:00:07.1]}
69. axb5 {[%clk 0:00:20.3]} 69... Rxd4+ {[%clk 0:00:06.6]} 70. Rxd4 {[%clk
0:00:20.2]} 70... Bxd4 {[%clk 0:00:07.5]} 71. Kxd4 {[%clk 0:00:21.1]} 71... Kb6
{[%clk 0:00:08.2]} 72. Kc4 {[%clk 0:00:22]} 72... Kb7 {[%clk 0:00:08.8]} 73. Kb4
{[%clk 0:00:22.1]} 73... Kb6 {[%clk 0:00:09.3]} 74. Kc4 {[%clk 0:00:22.3]} 74...
Kb7 {[%clk 0:00:10]} 75. Kc5 {[%clk 0:00:23.2]} 75... Kc7 {[%clk 0:00:10.6]} 76.
Kd4 {[%clk 0:00:23.2]} 76... Kb6 {[%clk 0:00:10.9]} 77. Kc4 {[%clk 0:00:24.1]}
1/2-1/2

[Event "*** Titled Tuesday Blitz"]
[Site "Chess.com"]
[Date "2021.04.27"]
[Round "10"]
[White "Susal_De_Silva"]
[Black "Grandelicious"]
[Result "0-1"]
[WhiteElo "2639"]
[BlackElo "2841"]
[TimeControl "180+1"]
[EndTime "11:54:58 PDT"]
[Termination "Grandelicious won by checkmate"]

1. e4 {[%clk 0:03:00.9]} 1... c5 {[%clk 0:02:59.2]} 2. Nf3 {[%clk 0:03:00.7]}
2... e6 {[%clk 0:03:00]} 3. d4 {[%clk 0:03:00.5]} 3... cxd4 {[%clk 0:03:00.9]}
4. Nxd4 {[%clk 0:03:01.4]} 4... a6 {[%clk 0:03:01.5]} 5. Be2 {[%clk 0:03:01.6]}
5... Ne7 {[%clk 0:02:54.5]} 6. O-O {[%clk 0:03:01.1]} 6... Nec6 {[%clk
0:02:55.1]} 7. Nc3 {[%clk 0:02:55.4]} 7... Be7 {[%clk 0:02:54.3]} 8. Be3 {[%clk
0:02:53.1]} 8... O-O {[%clk 0:02:54.2]} 9. f4 {[%clk 0:02:53.3]} 9... b5 {[%clk
0:02:54]} 10. e5 {[%clk 0:02:50.4]} 10... Nxd4 {[%clk 0:02:51]} 11. Bxd4 {[%clk
0:02:51.3]} 11... Nc6 {[%clk 0:02:51.5]} 12. Be3 {[%clk 0:02:50.4]} 12... Bb7
{[%clk 0:02:50]} 13. Bf3 {[%clk 0:02:49.1]} 13... Rc8 {[%clk 0:02:20.2]} 14. Ne4
{[%clk 0:02:46]} 14... Na5 {[%clk 0:02:20.2]} 15. b3 {[%clk 0:02:41.6]} 15...
Qc7 {[%clk 0:02:01.1]} 16. Rc1 {[%clk 0:01:40.3]} 16... Bxe4 {[%clk 0:01:45.4]}
17. Bxe4 {[%clk 0:01:38.1]} 17... g6 {[%clk 0:01:46]} 18. Bd3 {[%clk 0:01:34.1]}
18... d6 {[%clk 0:01:42.8]} 19. Bd4 {[%clk 0:01:32.2]} 19... Nc6 {[%clk
0:01:41.5]} 20. Ba1 {[%clk 0:01:21.6]} 20... dxe5 {[%clk 0:01:40.3]} 21. fxe5
{[%clk 0:01:22.5]} 21... Nxe5 {[%clk 0:01:34.8]} 22. Qe2 {[%clk 0:01:19.3]}
22... Nxd3 {[%clk 0:01:28.6]} 23. Qxd3 {[%clk 0:01:20.2]} 23... Rcd8 {[%clk
0:01:22.5]} 24. Qe2 {[%clk 0:01:19.2]} 24... Bc5+ {[%clk 0:01:22.1]} 25. Kh1
{[%clk 0:01:19.5]} 25... Bd4 {[%clk 0:01:22.5]} 26. c3 {[%clk 0:01:15.6]} 26...
Be5 {[%clk 0:01:20.4]} 27. h3 {[%clk 0:01:14.5]} 27... Rd7 {[%clk 0:01:20.8]}
28. Rfe1 {[%clk 0:01:14.5]} 28... Bg7 {[%clk 0:01:18.2]} 29. c4 {[%clk
0:01:00.1]} 29... Bxa1 {[%clk 0:01:16.6]} 30. cxb5 {[%clk 0:00:54.1]} 30... Bc3
{[%clk 0:01:00.5]} 31. Qe3 {[%clk 0:00:24.2]} 31... axb5 {[%clk 0:00:36.1]} 32.
Rxc3 {[%clk 0:00:22.5]} 32... Qa7 {[%clk 0:00:34.7]} 33. Qe2 {[%clk 0:00:17.6]}
33... Rfd8 {[%clk 0:00:33.7]} 34. Qxb5 {[%clk 0:00:15]} 34... Qxa2 {[%clk
0:00:33.4]} 35. Rf3 {[%clk 0:00:14.8]} 35... Qa7 {[%clk 0:00:27.1]} 36. Ref1
{[%clk 0:00:15]} 36... Rb8 {[%clk 0:00:23.4]} 37. Qg5 {[%clk 0:00:14.8]} 37...
Qb6 {[%clk 0:00:15.6]} 38. h4 {[%clk 0:00:10.4]} 38... Rbb7 {[%clk 0:00:13.9]}
39. Qg3 {[%clk 0:00:09.3]} 39... Rd5 {[%clk 0:00:13.6]} 40. Qf4 {[%clk
0:00:07.7]} 40... Rbd7 {[%clk 0:00:13.1]} 41. Qf6 {[%clk 0:00:07.3]} 41... Qb7
{[%clk 0:00:10.4]} 42. Rc1 {[%clk 0:00:05.6]} 42... Rd1+ {[%clk 0:00:10.6]} 43.
Rxd1 {[%clk 0:00:05.7]} 43... Rxd1+ {[%clk 0:00:11.5]} 44. Kh2 {[%clk
0:00:06.5]} 44... Qc7+ {[%clk 0:00:12.1]} 45. Qf4 {[%clk 0:00:02.6]} 45... Qxf4+
{[%clk 0:00:10.2]} 46. Rxf4 {[%clk 0:00:03.5]} 46... Rb1 {[%clk 0:00:10.1]} 47.
Rb4 {[%clk 0:00:04.1]} 47... Kg7 {[%clk 0:00:10.5]} 48. Kh3 {[%clk 0:00:04.4]}
48... h6 {[%clk 0:00:08.6]} 49. Rb7 {[%clk 0:00:05.3]} 49... Rb2 {[%clk
0:00:07.8]} 50. b4 {[%clk 0:00:04.8]} 50... Kf6 {[%clk 0:00:07.6]} 51. b5 {[%clk
0:00:04.7]} 51... g5 {[%clk 0:00:07.8]} 52. hxg5+ {[%clk 0:00:04.6]} 52... hxg5
{[%clk 0:00:08.7]} 53. Rb8 {[%clk 0:00:05.5]} 53... Kf5 {[%clk 0:00:08.9]} 54.
b6 {[%clk 0:00:04.3]} 54... Rb3+ {[%clk 0:00:08]} 55. Kh2 {[%clk 0:00:04.1]}
55... f6 {[%clk 0:00:07.1]} 56. b7 {[%clk 0:00:04.5]} 56... e5 {[%clk
0:00:06.9]} 57. Kg1 {[%clk 0:00:03.3]} 57... g4 {[%clk 0:00:07.4]} 58. Kf1
{[%clk 0:00:03.4]} 58... Rb2 {[%clk 0:00:07]} 59. Ke1 {[%clk 0:00:03.3]} 59...
Ke4 {[%clk 0:00:07.2]} 60. Rf8 {[%clk 0:00:02.8]} 60... Rxb7 {[%clk 0:00:06.8]}
61. Rxf6 {[%clk 0:00:03.7]} 61... Rb2 {[%clk 0:00:07.1]} 62. Kf1 {[%clk
0:00:03.8]} 62... Ke3 {[%clk 0:00:06]} 63. Rf5 {[%clk 0:00:03.6]} 63... Rb1#
{[%clk 0:00:06]} 0-1

[Event "*** Titled Tuesday Blitz"]
[Site "Chess.com"]
[Date "2021.04.27"]
[Round "10"]
[White "Mikhail_Golubev"]
[Black "fyall777"]
[Result "0-1"]
[WhiteElo "2544"]
[BlackElo "2421"]
[TimeControl "180+1"]
[EndTime "11:55:05 PDT"]
[Termination "fyall777 won on time"]

1. e4 {[%clk 0:03:00.9]} 1... e5 {[%clk 0:02:58]} 2. Nf3 {[%clk 0:03:00.4]} 2...
Nf6 {[%clk 0:02:57.8]} 3. Nxe5 {[%clk 0:02:53.3]} 3... d6 {[%clk 0:02:58]} 4.
Nf3 {[%clk 0:02:53.3]} 4... Nxe4 {[%clk 0:02:56.6]} 5. Nc3 {[%clk 0:02:53.5]}
5... Nf6 {[%clk 0:02:56.2]} 6. d4 {[%clk 0:02:51.3]} 6... Be7 {[%clk 0:02:54.7]}
7. Bd3 {[%clk 0:02:51.1]} 7... O-O {[%clk 0:02:54.9]} 8. O-O {[%clk 0:02:50.5]}
8... Bg4 {[%clk 0:02:55]} 9. h3 {[%clk 0:02:50.4]} 9... Bh5 {[%clk 0:02:55.2]}
10. Re1 {[%clk 0:02:49.5]} 10... Nc6 {[%clk 0:02:49.4]} 11. d5 {[%clk
0:02:38.2]} 11... Ne5 {[%clk 0:02:40.6]} 12. g4 {[%clk 0:02:29.7]} 12... Nxd3
{[%clk 0:02:40]} 13. Qxd3 {[%clk 0:02:14.9]} 13... Bg6 {[%clk 0:02:38.4]} 14.
Qe2 {[%clk 0:02:04.7]} 14... Re8 {[%clk 0:02:37.2]} 15. Be3 {[%clk 0:02:04.2]}
15... Nd7 {[%clk 0:02:36.1]} 16. Qd2 {[%clk 0:01:59.5]} 16... Bf6 {[%clk
0:02:21]} 17. Nd4 {[%clk 0:01:57.3]} 17... Ne5 {[%clk 0:02:13.7]} 18. b3 {[%clk
0:01:56.5]} 18... c5 {[%clk 0:02:00.7]} 19. dxc6 {[%clk 0:01:55.3]} 19... bxc6
{[%clk 0:01:43.2]} 20. f4 {[%clk 0:01:46.2]} 20... c5 {[%clk 0:01:39.4]} 21.
fxe5 {[%clk 0:01:44.9]} 21... cxd4 {[%clk 0:01:39.6]} 22. exf6 {[%clk
0:01:44.1]} 22... dxe3 {[%clk 0:01:31.1]} 23. Rxe3 {[%clk 0:01:43.8]} 23... Rxe3
{[%clk 0:01:22.3]} 24. Qxe3 {[%clk 0:01:42.8]} 24... Qxf6 {[%clk 0:01:22.6]} 25.
Rf1 {[%clk 0:01:42.4]} 25... Qe6 {[%clk 0:01:10]} 26. Qxe6 {[%clk 0:01:39.7]}
26... fxe6 {[%clk 0:01:10.1]} 27. Rd1 {[%clk 0:01:39.6]} 27... d5 {[%clk
0:01:09.8]} 28. Nb5 {[%clk 0:01:34.7]} 28... Bxc2 {[%clk 0:01:00.4]} 29. Re1
{[%clk 0:01:34.6]} 29... Be4 {[%clk 0:01:00]} 30. Nc3 {[%clk 0:01:29.6]} 30...
Bg6 {[%clk 0:00:47.8]} 31. Rxe6 {[%clk 0:01:27.1]} 31... d4 {[%clk 0:00:48.1]}
32. Nd5 {[%clk 0:01:13.8]} 32... d3 {[%clk 0:00:47.6]} 33. Rd6 {[%clk
0:01:13.6]} 33... Re8 {[%clk 0:00:33.4]} 34. Nf4 {[%clk 0:01:08.9]} 34... Re1+
{[%clk 0:00:19.6]} 35. Kf2 {[%clk 0:01:05.4]} 35... Ra1 {[%clk 0:00:20]} 36.
Nxg6 {[%clk 0:00:57.9]} 36... Rxa2+ {[%clk 0:00:19.2]} 37. Ke3 {[%clk
0:00:54.1]} 37... hxg6 {[%clk 0:00:20.1]} 38. Kxd3 {[%clk 0:00:53.8]} 38... Rh2
{[%clk 0:00:19.5]} 39. Rxg6 {[%clk 0:00:52.7]} 39... Rxh3+ {[%clk 0:00:19.6]}
40. Kc4 {[%clk 0:00:51.9]} 40... Rg3 {[%clk 0:00:20]} 41. b4 {[%clk 0:00:47.1]}
41... Kh7 {[%clk 0:00:19.1]} 42. Rg5 {[%clk 0:00:47]} 42... g6 {[%clk
0:00:17.6]} 43. Ra5 {[%clk 0:00:46.7]} 43... Rxg4+ {[%clk 0:00:15.9]} 44. Kb3
{[%clk 0:00:43.7]} 44... Rg3+ {[%clk 0:00:15.9]} 45. Ka4 {[%clk 0:00:43.7]}
45... g5 {[%clk 0:00:15.9]} 46. Rxa7+ {[%clk 0:00:44.1]} 46... Kg6 {[%clk
0:00:15.1]} 47. b5 {[%clk 0:00:40.8]} 47... Rg1 {[%clk 0:00:14.8]} 48. Rd7
{[%clk 0:00:35.9]} 48... Rb1 {[%clk 0:00:12.5]} 49. Ka5 {[%clk 0:00:34.8]} 49...
g4 {[%clk 0:00:11.1]} 50. b6 {[%clk 0:00:30]} 50... Kf5 {[%clk 0:00:11.2]} 51.
b7 {[%clk 0:00:20.2]} 51... g3 {[%clk 0:00:11.2]} 52. Rd5+ {[%clk 0:00:19.3]}
52... Kg4 {[%clk 0:00:09.4]} 53. Rb5 {[%clk 0:00:17.7]} 53... Ra1+ {[%clk
0:00:07]} 54. Kb4 {[%clk 0:00:14.4]} 54... Rb1+ {[%clk 0:00:05.9]} 55. Ka4
{[%clk 0:00:11.8]} 55... Ra1+ {[%clk 0:00:05.7]} 56. Kb3 {[%clk 0:00:10.8]}
56... Rb1+ {[%clk 0:00:05.9]} 57. Kc4 {[%clk 0:00:09]} 57... Rc1+ {[%clk
0:00:04.7]} 58. Kb3 {[%clk 0:00:04.4]} 58... Rb1+ {[%clk 0:00:04.1]} 59. Kc4
{[%clk 0:00:04.3]} 59... Rc1+ {[%clk 0:00:04.2]} 60. Kb4 {[%clk 0:00:02.7]}
60... Rb1+ {[%clk 0:00:04.1]} 61. Ka5 {[%clk 0:00:02.5]} 61... Ra1+ {[%clk
0:00:04]} 62. Kb6 {[%clk 0:00:02.3]} 62... g2 {[%clk 0:00:04.3]} 63. b8=Q {[%clk
0:00:02.5]} 63... g1=Q+ {[%clk 0:00:04]} 64. Kb7 {[%clk 0:00:01]} 64... Qg2+
{[%clk 0:00:02.2]} 0-1